bitfinex-derivatives/quotes_BTCF0:USTF0_20240925
["timestamp","ask_amount","ask_price","bid_price","bid_amount"]
[1727271604637,0.0008,63577.0,63576.0,0.078649]
[1727271605937,0.0008,63577.0,63574.0,0.078652]
[1727271606131,0.1508,63575.0,63574.0,0.078652]
[1727271606740,0.5116,63575.0,63567.0,0.04707112]
[1727271606949,0.3616,63568.0,63561.0,0.04707112]
[1727271607142,0.078671,63559.0,63553.0,0.04943133]
[1727271607337,0.3608,63555.0,63546.0,0.04707112]
[1727271607537,0.3608,63555.0,63529.0,0.3608]
[1727271607538,0.078687,63546.0,63538.0,0.07827369]
[1727271607738,0.078687,63546.0,63542.0,0.17005081]
[1727271607959,0.3616,63547.0,63541.0,0.12576312]
[1727271607960,0.15,63543.0,63541.0,0.12576312]
[1727271608146,0.3616,63547.0,63542.0,0.12576212]
[1727271608345,0.15,63543.0,63542.0,0.2593793]
[1727271608539,0.5116,63547.0,63541.0,0.1806883]
[1727271608745,0.5116,63547.0,63539.0,0.1806883]
[1727271608746,0.3616,63547.0,63545.0,0.078687]
[1727271609443,0.0008,63547.0,63546.0,0.17715112]
[1727271609645,0.5108,63555.0,63546.0,0.17715112]
[1727271610540,0.001,63547.0,63546.0,0.25583812]
[1727271611044,0.5118,63555.0,63546.0,0.17715112]
[1727271611733,0.001,63547.0,63546.0,0.25583812]
[1727271612141,0.151,63547.0,63545.0,0.014]
[1727271612531,0.0008,63546.0,63545.0,0.014]
[1727271612742,0.151,63547.0,63546.0,0.0132]
[1727271612951,0.151,63547.0,63533.0,0.04707112]
[1727271612952,0.078689,63544.0,63536.0,0.078698]
[1727271613138,0.151,63547.0,63536.0,0.078698]
[1727271613139,0.5116,63537.0,63536.0,0.078698]
[1727271613341,0.5116,63537.0,63536.0,0.25721454]
[1727271613533,0.5116,63537.0,63536.0,0.078698]
[1727271613737,0.4976,63537.0,63536.0,0.078698]
[1727271614118,0.4968,63537.0,63536.0,0.078698]
[1727271614636,0.4978,63537.0,63536.0,0.078698]
[1727271615234,0.151,63537.0,63536.0,0.078698]
[1727271615338,0.078701,63534.0,63533.0,0.00236098]
[1727271615534,0.078708,63529.0,63522.0,0.198716]
[1727271615735,0.15,63523.0,63522.0,0.198716]
[1727271615935,0.0008,63523.0,63522.0,0.12]
[1727271616136,0.15,63525.0,63524.0,0.078714]
[1727271616743,0.151,63529.0,63528.0,0.078709]
[1727271617049,0.001,63529.0,63528.0,0.078709]
[1727271617246,0.51404001,63534.0,63530.0,0.078706]
[1727271617556,0.51404001,63534.0,63533.0,0.078703]
[1727271617557,0.3616,63534.0,63533.0,0.078703]
[1727271618952,0.0008,63534.0,63533.0,0.24509649]
[1727271619252,0.0008,63534.0,63533.0,0.32379949]
[1727271619501,0.685,63546.0,63543.0,0.07869]
[1727271619502,0.3242,63546.0,63543.0,0.07869]
[1727271619750,0.00244001,63546.0,63545.0,0.078688]
[1727271620042,0.078679,63552.0,63540.0,0.3608]
[1727271620043,0.078679,63552.0,63551.0,0.07868]
[1727271620345,0.228679,63552.0,63551.0,0.07868]
[1727271620546,0.078684,63548.0,63546.0,0.078685]
[1727271620846,0.078692,63542.0,63540.0,0.3608]
[1727271621244,0.1508,63541.0,63540.0,0.3608]
[1727271621445,0.15,63541.0,63540.0,0.3608]
[1727271621647,0.15,63541.0,63539.0,0.078694]
[1727271621973,0.0008,63540.0,63539.0,0.078694]
[1727271622548,0.1114253,63541.0,63539.0,0.078694]
[1727271622943,0.0787,63535.0,63531.0,0.3608]
[1727271623148,0.2295,63535.0,63531.0,0.3608]
[1727271623649,0.15,63535.0,63534.0,0.078701]
[1727271623841,0.15,63535.0,63534.0,0.079901]
[1727271624035,0.078697,63538.0,63534.0,0.079901]
[1727271624238,0.15,63535.0,63534.0,0.079901]
[1727271624748,0.0797,63535.0,63534.0,0.0012]
[1727271624958,0.078714,63525.0,63522.0,0.12]
[1727271625149,0.2208,63523.0,63522.0,0.198716]
[1727271626449,0.0008,63523.0,63522.0,0.198716]
[1727271626752,0.0018,63523.0,63522.0,0.198716]
[1727271627145,0.0028,63523.0,63522.0,0.198716]
[1727271628249,0.0028,63523.0,63522.0,0.559516]
[1727271629548,0.24182769,63535.0,63534.0,0.078701]
[1727271629549,0.0101,63535.0,63534.0,0.078701]
[1727271629747,0.0064,63535.0,63534.0,0.078701]
[1727271630760,0.0074,63535.0,63534.0,0.078701]
[1727271631356,0.078692,63542.0,63541.0,0.078693]
[1727271631560,0.078692,63542.0,63541.0,0.079093]
[1727271632449,0.078698,63537.0,63535.0,0.04683894]
[1727271632646,1.150812,63542.0,63530.0,0.04683894]
[1727271632647,0.078705,63531.0,63530.0,0.04683894]
[1727271632840,0.22,63531.0,63527.0,0.04683894]
[1727271633043,0.22,63531.0,63525.0,0.12555194]
[1727271633256,0.078714,63524.0,63523.0,0.06310935]
[1727271633555,0.439514,63524.0,63523.0,0.0008]
[1727271633744,0.439514,63524.0,63522.0,0.12]
[1727271633745,1.731794,63524.0,63522.0,0.12]
[1727271633945,1.731794,63524.0,63518.0,0.06230935]
[1727271633946,0.47228,63523.0,63510.0,0.0781728]
[1727271634249,0.47228,63523.0,63502.0,0.08244]
[1727271634250,0.5808,63511.0,63502.0,0.08244]
[1727271634452,0.22,63504.0,63502.0,0.07874]
[1727271635397,0.22,63504.0,63503.0,0.10583508]
[1727271635754,0.22,63504.0,63503.0,0.18457508]
[1727271635951,0.078734,63508.0,63503.0,0.18456956]
[1727271636256,0.078734,63508.0,63504.0,0.10582956]
[1727271636257,0.22,63507.0,63504.0,0.10582956]
[1727271636579,0.22,63507.0,63505.0,0.10582956]
[1727271636746,0.002,63504.0,63503.0,0.17486601]
[1727271637055,0.0024,63504.0,63503.0,0.18621027]
[1727271637560,0.0014,63504.0,63503.0,0.18621027]
[1727271637949,0.0014,63504.0,63503.0,0.20159628]
[1727271638154,0.0024,63504.0,63503.0,0.10747027]
[1727271638749,0.0014,63504.0,63503.0,0.10547027]
[1727271639226,0.0014,63504.0,63503.0,0.18421027]
[1727271639250,0.0014,63504.0,63503.0,0.27833628]
[1727271639448,0.440939,63504.0,63503.0,0.10547027]
[1727271639649,0.440939,63504.0,63495.0,0.078749]
[1727271639650,1.38044155,63504.0,63495.0,0.09412601]
[1727271639848,0.07875,63495.0,63491.0,0.09412601]
[1727271640155,0.07875,63495.0,63490.0,0.078755]
[1727271640156,0.07955,63495.0,63490.0,0.078755]
[1727271640364,0.078753,63493.0,63490.0,0.078755]
[1727271640661,0.0008,63491.0,63488.0,0.078758]
[1727271640856,0.0008,63491.0,63484.0,0.09412601]
[1727271640857,0.2208,63491.0,63489.0,0.10550756]
[1727271641158,0.2208,63491.0,63482.0,0.0319]
[1727271641159,0.3608,63490.0,63484.0,0.09412601]
[1727271641361,0.22,63486.0,63485.0,0.1055578]
[1727271641549,0.14118653,63486.0,63485.0,0.1055578]
[1727271641752,0.14118653,63486.0,63475.0,0.14134255]
[1727271641753,0.47256,63485.0,63472.0,0.08416386]
[1727271641994,0.47256,63485.0,63466.0,0.0308]
[1727271641995,0.0004,63473.0,63466.0,0.078785]
[1727271642153,0.3612,63467.0,63460.0,0.10964255]
[1727271642366,0.3612,63467.0,63447.0,0.15655236]
[1727271642367,0.3612,63461.0,63436.0,0.12504114]
[1727271642572,0.3612,63461.0,63416.0,0.20351808]
[1727271642573,0.078849,63416.0,63384.0,0.3608]
[1727271642897,0.078849,63416.0,63343.0,0.32875997]
[1727271642898,0.0004,63385.0,63375.0,0.3478]
[1727271643048,0.0004,63385.0,63383.0,0.3608]
[1727271643253,0.0004,63385.0,63375.0,0.3478]
[1727271643254,0.3608,63387.0,63375.0,0.3478]
[1727271643450,0.3608,63393.0,63375.0,0.3478]
[1727271643451,0.0004,63376.0,63375.0,0.3368]
[1727271643654,0.3608,63396.0,63376.0,0.078897]
[1727271643853,0.3608,63396.0,63382.0,0.3608]
[1727271644053,0.3608,63396.0,63395.0,0.0004]
[1727271644254,0.4732,63396.0,63395.0,0.3612]
[1727271644468,0.07753841,63417.0,63395.0,0.3612]
[1727271644657,0.07753841,63417.0,63407.0,0.3608]
[1727271644857,0.3608,63413.0,63407.0,0.3616]
[1727271645064,0.7008,63408.0,63407.0,0.0008]
[1727271645358,0.00252,63415.0,63407.0,0.0008]
[1727271645559,0.00348001,63416.0,63414.0,0.0004]
[1727271645761,0.3608,63418.0,63415.0,0.0004]
[1727271645959,0.3608,63418.0,63414.0,0.0004]
[1727271646159,0.3608,63431.0,63417.0,0.3608]
[1727271646362,0.3608,63431.0,63430.0,0.0004]
[1727271647162,0.3608,63439.0,63430.0,0.0004]
[1727271647376,0.001,63431.0,63430.0,0.0004]
[1727271647755,0.001,63431.0,63424.0,0.0322]
[1727271647966,0.0004,63425.0,63424.0,0.0322]
[1727271649356,0.008,63431.0,63430.0,0.001]
[1727271649558,0.008,63431.0,63430.0,0.0014]
[1727271650062,0.3608,63432.0,63430.0,0.0004]
[1727271650259,0.3608,63438.0,63430.0,0.0004]
[1727271650573,0.3608,63432.0,63431.0,0.0004]
[1727271650769,0.006,63431.0,63424.0,0.0332]
[1727271650967,0.3616,63425.0,63424.0,0.0332]
[1727271652070,1.4346,63425.0,63424.0,0.0322]
[1727271652372,1.7746,63425.0,63424.0,0.0322]
[1727271653174,1.7886,63425.0,63424.0,0.0332]
[1727271653567,1.7886,63425.0,63424.0,0.001]
[1727271653774,1.7996,63425.0,63424.0,0.001]
[1727271654273,0.3866,63425.0,63424.0,0.001]
[1727271654663,0.025,63425.0,63424.0,0.001]
[1727271654863,0.3608,63445.0,63424.0,0.341]
[1727271655067,0.3608,63451.0,63441.0,0.3608]
[1727271655262,0.3608,63451.0,63441.0,0.23460657]
[1727271656222,0.3608,63451.0,63435.0,0.3608]
[1727271656223,0.005,63445.0,63435.0,0.3608]
[1727271656371,0.0008,63436.0,63435.0,0.439624]
[1727271657572,0.0018,63436.0,63435.0,0.446624]
[1727271659178,0.0018,63436.0,63435.0,0.448624]
[1727271660078,0.0018,63436.0,63435.0,0.446624]
[1727271660204,0.0008,63436.0,63435.0,0.442624]
[1727271660369,0.0008,63436.0,63435.0,0.3638]
[1727271660576,0.0008,63436.0,63435.0,0.003]
[1727271662278,0.0008,63436.0,63435.0,0.0034]
[1727271662483,0.0018,63436.0,63435.0,0.0044]
[1727271662779,0.0098,63436.0,63435.0,0.3632]
[1727271663166,0.0098,63436.0,63435.0,0.442024]
[1727271663365,0.0098,63436.0,63435.0,0.3632]
[1727271664075,0.561543,63436.0,63435.0,0.0024]
[1727271664280,0.088623,63436.0,63435.0,0.0024]
[1727271664486,0.080623,63436.0,63435.0,0.0044]
[1727271664969,0.078837,63425.0,63424.0,0.0008]
[1727271665165,0.079237,63425.0,63424.0,0.0008]
[1727271665568,0.0004,63425.0,63424.0,0.0008]
[1727271665867,0.0004,63425.0,63424.0,0.0001176]
[1727271665868,0.079237,63425.0,63424.0,0.0001176]
[1727271666377,0.079237,63425.0,63424.0,1.758e-05]
[1727271666378,0.081237,63425.0,63424.0,1.758e-05]
[1727271666875,0.081237,63425.0,63424.0,0.00201758]
[1727271667273,0.0024,63425.0,63424.0,0.00201758]
[1727271667473,0.0024,63425.0,63424.0,0.08085558]
[1727271668172,0.3608,63437.0,63431.0,0.078828]
[1727271668476,0.3608,63437.0,63434.0,0.078824]
[1727271668672,0.3608,63437.0,63429.0,0.3608]
[1727271668673,0.439623,63437.0,63436.0,0.0004]
[1727271669474,0.445623,63437.0,63436.0,0.0004]
[1727271669782,0.450623,63437.0,63436.0,5.806e-05]
[1727271670076,0.784623,63437.0,63436.0,5.806e-05]
[1727271670286,0.85690959,63437.0,63436.0,5.806e-05]
[1727271670582,0.85690959,63437.0,63436.0,0.00105806]
[1727271670790,0.85690959,63437.0,63436.0,0.001]
[1727271670974,0.874446,63437.0,63436.0,0.001]
[1727271671180,0.078835,63427.0,63424.0,1.758e-05]
[1727271671487,0.079237,63425.0,63424.0,1.758e-05]
[1727271671966,0.22024281,63425.0,63424.0,1.758e-05]
[1727271672171,0.10480287,63425.0,63424.0,1.758e-05]
[1727271672782,0.15703906,63425.0,63424.0,0.00201758]
[1727271673282,0.10480067,63425.0,63424.0,0.00201758]
[1727271673471,0.18363767,63425.0,63424.0,0.00201758]
[1727271673666,0.07885,63414.0,63412.0,0.00236547]
[1727271673979,0.06227368,63416.0,63412.0,0.00236547]
[1727271674178,0.06227368,63416.0,63415.0,0.079249]
[1727271674384,0.06229086,63416.0,63415.0,0.079249]
[1727271674579,0.14113886,63416.0,63415.0,0.0004]
[1727271674781,0.078848,63416.0,63415.0,0.0004]
[1727271675082,0.078848,63416.0,63407.0,0.3608]
[1727271675083,0.078858,63408.0,63407.0,0.3608]
[1727271675287,0.419258,63408.0,63407.0,0.3608]
[1727271675579,0.419258,63408.0,63399.0,0.111969]
[1727271675580,0.078866,63402.0,63399.0,0.111969]
[1727271675771,0.3404,63400.0,63399.0,0.111969]
[1727271676082,0.02596648,63400.0,63399.0,0.111969]
[1727271676380,0.07824897,63400.0,63399.0,0.111969]
[1727271676576,0.02597184,63400.0,63399.0,0.111969]
[1727271676785,0.078869,63399.0,63390.0,0.3909]
[1727271676975,0.07784697,63396.0,63395.0,0.078874]
[1727271677476,0.07784697,63396.0,63384.0,0.3608]
[1727271677477,1.16665358,63396.0,63384.0,0.439688]
[1727271677679,0.07778479,63388.0,63387.0,0.078884]
[1727271677886,0.006,63400.0,63389.0,0.078881]
[1727271677887,0.06222869,63390.0,63389.0,0.078881]
[1727271678079,0.06222869,63392.0,63389.0,0.47368]
[1727271678278,0.01232869,63394.0,63393.0,0.078877]
[1727271678474,0.01232869,63394.0,63393.0,0.079277]
[1727271678669,0.01232869,63394.0,63393.0,1.32921271]
[1727271679075,0.09345358,63405.0,63399.0,0.078869]
[1727271679275,0.3608,63409.0,63399.0,0.078869]
[1727271679276,0.02557197,63404.0,63399.0,0.078869]
[1727271679475,0.09345358,63408.0,63401.0,0.3608]
[1727271679672,0.02557086,63407.0,63401.0,0.3608]
[1727271680294,0.078863,63404.0,63401.0,0.3608]
[1727271680530,0.45669359,63409.0,63404.0,0.078863]
[1727271680672,0.02557051,63408.0,63404.0,0.078863]
[1727271680867,0.02557051,63408.0,63405.0,0.078862]
[1727271681074,0.02557051,63408.0,63406.0,0.07886]
[1727271681372,0.078856,63410.0,63407.0,0.3608]
[1727271681574,0.078857,63409.0,63407.0,0.3608]
[1727271681775,0.09345358,63413.0,63406.0,0.3608]
[1727271682087,0.0008,63407.0,63406.0,0.3608]
[1727271682279,0.078843,63420.0,63406.0,1.43392]
[1727271682581,0.078843,63420.0,63407.0,0.16886646]
[1727271682774,0.0313,63424.0,63412.0,0.3608]
[1727271683084,0.078841,63422.0,63418.0,0.078845]
[1727271683587,0.078841,63422.0,63412.0,0.3608]
[1727271683888,0.34,63425.0,63412.0,0.3608]
[1727271683889,0.078839,63424.0,63420.0,0.078843]
[1727271684081,0.34,63425.0,63420.0,0.078843]
[1727271684773,0.34,63425.0,63413.0,0.0012]
[1727271684774,0.34,63431.0,63419.0,0.3608]
[1727271685081,0.34,63431.0,63424.0,0.078837]
[1727271685082,0.078832,63429.0,63424.0,0.078837]
[1727271685280,0.078832,63429.0,63427.0,0.078834]
[1727271685483,0.078832,63429.0,63419.0,0.3608]
[1727271685484,0.078827,63433.0,63428.0,0.3608]
[1727271685683,0.45425358,63440.0,63421.0,0.078841]
[1727271685684,0.078832,63429.0,63421.0,0.078841]
[1727271685981,0.3608,63434.0,63419.0,0.3608]
[1727271685982,0.0008,63422.0,63419.0,0.3608]
[1727271686183,0.07964,63422.0,63420.0,0.078843]
[1727271686383,0.07884,63422.0,63420.0,0.078843]
[1727271686580,0.07884,63422.0,63421.0,0.078842]
[1727271686793,0.22,63432.0,63424.0,0.078838]
[1727271686982,0.07884,63422.0,63421.0,0.001]
[1727271687189,0.07964,63422.0,63421.0,0.001]
[1727271687483,0.08064,63422.0,63421.0,0.001]
[1727271688674,0.08064,63422.0,63416.0,0.078848]
[1727271688878,0.0008,63417.0,63416.0,0.078848]
[1727271689792,0.0008,63417.0,63416.0,0.079848]
[1727271689984,0.02636396,63417.0,63416.0,0.079848]
[1727271690181,0.02636396,63417.0,63416.0,1.152928]
[1727271690388,0.02636396,63417.0,63416.0,1.32397121]
[1727271690573,0.09345358,63421.0,63417.0,0.22]
[1727271690574,0.0934126,63421.0,63417.0,0.22]
[1727271690890,0.0934126,63423.0,63420.0,0.3608]
[1727271691086,0.078844,63419.0,63418.0,0.17104321]
[1727271691388,0.078847,63417.0,63416.0,0.001]
[1727271691781,0.079647,63417.0,63416.0,0.001]
[1727271692118,0.14563848,63417.0,63416.0,0.001]
[1727271692782,0.078849,63415.0,63414.0,0.00436536]
[1727271692979,0.299649,63415.0,63414.0,0.00436536]
[1727271693179,0.3930821,63415.0,63414.0,0.00436536]
[1727271693477,0.2208,63415.0,63414.0,0.08321536]
[1727271693684,0.299649,63415.0,63414.0,0.00436536]
[1727271693879,0.378498,63415.0,63414.0,0.002]
[1727271694078,0.078864,63404.0,63403.0,0.078864]
[1727271694275,0.078864,63404.0,63401.0,0.3608]
[1727271694276,0.078865,63402.0,63401.0,0.3608]
[1727271694479,0.0008,63402.0,63401.0,0.3608]
[1727271694788,0.0008,63404.0,63403.0,0.078864]
[1727271696384,0.0028,63404.0,63403.0,0.078864]
[1727271696585,0.0028,63404.0,63403.0,0.080864]
[1727271697577,0.0028,63404.0,63403.0,0.159728]
[1727271698278,0.0028,63404.0,63403.0,0.33241773]
[1727271698484,0.0028,63404.0,63403.0,1.40557773]
[1727271698887,0.00194194,63415.0,63414.0,0.07885]
[1727271699916,0.22,63426.0,63414.0,0.07885]
[1727271699917,0.09345866,63423.0,63414.0,0.0004]
[1727271700189,0.22,63431.0,63424.0,0.078838]
[1727271700190,0.09345866,63425.0,63424.0,0.078838]
[1727271700395,0.09345866,63426.0,63425.0,0.078837]
[1727271700604,0.09351659,63427.0,63425.0,0.0004]
[1727271700788,0.09351659,63432.0,63431.0,0.078829]
[1727271701098,0.09351659,63435.0,63432.0,0.18294868]
[1727271701282,0.09351659,63437.0,63434.0,0.0004]
[1727271701484,0.09351659,63437.0,63436.0,0.078823]
[1727271701685,0.09350511,63440.0,63436.0,0.3608]
[1727271701986,0.09350511,63443.0,63441.0,0.078817]
[1727271702295,0.078814,63444.0,63442.0,0.079216]
[1727271702787,0.078814,63444.0,63443.0,0.0004]
[1727271702996,0.3608,63446.0,63445.0,0.078812]
[1727271702997,0.45430511,63446.0,63445.0,0.078812]
[1727271703295,0.3608,63446.0,63445.0,0.079212]
[1727271703821,0.12533997,63452.0,63445.0,0.0004]
[1727271703978,0.09343997,63451.0,63445.0,0.0004]
[1727271704181,0.0319,63452.0,63442.0,0.5818]
[1727271704182,0.12533997,63452.0,63442.0,0.5818]
[1727271704383,0.0004,63443.0,63442.0,0.5818]
[1727271704583,0.0004,63443.0,63442.0,0.660616]
[1727271704782,0.0004,63443.0,63442.0,1.91426604]
[1727271704983,0.00194194,63453.0,63452.0,0.078803]
[1727271705180,0.00194194,63453.0,63452.0,0.440003]
[1727271705691,0.22,63466.0,63452.0,0.440003]
[1727271705692,0.298786,63466.0,63461.0,0.078791]
[1727271705889,0.3608,63467.0,63465.0,0.0004]
[1727271706195,0.3608,63467.0,63466.0,0.079186]
[1727271706405,0.0315,63480.0,63471.0,0.07878]
[1727271706406,0.078777,63473.0,63471.0,0.07878]
[1727271706595,0.078777,63473.0,63471.0,0.07918]
[1727271707092,0.0315,63480.0,63472.0,0.078778]
[1727271707093,0.078774,63476.0,63472.0,0.078778]
[1727271707308,0.078774,63476.0,63471.0,0.0004]
[1727271707309,0.3608,63491.0,63475.0,0.0004]
[1727271707595,0.3608,63484.0,63475.0,0.0004]
[1727271707694,0.298773,63476.0,63475.0,0.0004]
[1727271707898,0.22,63476.0,63475.0,0.0004]
[1727271708084,0.078769,63480.0,63475.0,0.0004]
[1727271708284,0.22,63481.0,63479.0,0.0004]
[1727271708500,0.439556,63491.0,63465.0,0.0004]
[1727271708501,0.078778,63472.0,63467.0,0.078784]
[1727271708695,0.078778,63472.0,63465.0,0.001]
[1727271708696,0.0004,63468.0,63465.0,0.001]
[1727271708887,0.078786,63466.0,63465.0,0.001]
[1727271709089,0.078786,63466.0,63451.0,0.078804]
[1727271709090,0.078799,63456.0,63451.0,0.078804]
[1727271709397,0.079186,63466.0,63447.0,0.3608]
[1727271709398,0.0004,63452.0,63447.0,0.3608]
[1727271709994,0.078796,63458.0,63447.0,0.3608]
[1727271710211,0.079798,63456.0,63453.0,0.078802]
[1727271710507,0.078803,63452.0,63451.0,0.007]
[1727271710688,0.079203,63452.0,63451.0,0.007]
[1727271711070,0.079203,63452.0,63451.0,0.004]
[1727271712093,0.17155228,63452.0,63436.0,0.3938]
[1727271712288,0.0004,63437.0,63436.0,0.3938]
[1727271712692,0.0004,63437.0,63436.0,0.472623]
[1727271712891,0.02595458,63437.0,63436.0,0.439623]
[1727271713207,0.11895916,63437.0,63436.0,0.439623]
[1727271713403,0.02595458,63437.0,63436.0,0.3608]
[1727271713595,0.02595458,63437.0,63436.0,0.439623]
[1727271713905,0.02695458,63437.0,63436.0,0.442623]
[1727271714097,0.02695458,63437.0,63436.0,0.003]
[1727271714098,0.53153095,63437.0,63436.0,0.003]
[1727271714706,0.68520329,63437.0,63436.0,0.003]
[1727271715203,0.68520329,63437.0,63423.0,0.08120355]
[1727271715204,0.078823,63436.0,63423.0,0.08120355]
[1727271715398,0.09293607,63424.0,63423.0,0.08120355]
[1727271715590,0.02555458,63424.0,63423.0,0.08120355]
[1727271715796,0.77813795,63424.0,63423.0,0.00236455]
[1727271716003,0.078845,63418.0,63406.0,0.3608]
[1727271716196,0.74939135,63418.0,63409.0,0.078856]
[1727271716403,0.74939135,63418.0,63406.0,0.3608]
[1727271716800,0.85781676,63418.0,63410.0,0.078854]
[1727271717104,0.81336547,63418.0,63406.0,0.3608]
[1727271717488,0.82136547,63418.0,63406.0,0.3608]
[1727271717809,0.74739135,63418.0,63409.0,0.078856]
[1727271718101,0.07885,63415.0,63406.0,0.3608]
[1727271718452,0.78729427,63418.0,63406.0,0.439659]
[1727271718453,0.0932518,63407.0,63406.0,0.439659]
[1727271718522,0.0004,63407.0,63406.0,0.439659]
[1727271718799,0.0928518,63412.0,63406.0,0.3608]
[1727271719104,0.07738212,63407.0,63406.0,0.43966]
[1727271719911,0.07738212,63408.0,63407.0,0.078859]
[1727271720109,0.078848,63416.0,63406.0,0.54105115]
[1727271720304,0.3722,63418.0,63413.0,0.078851]
[1727271720490,0.439648,63416.0,63407.0,0.0004]
[1727271720793,0.518916,63408.0,63407.0,0.0004]
[1727271721026,0.518916,63408.0,63396.0,0.3608]
[1727271721027,0.3612,63408.0,63396.0,0.3608]
[1727271721227,0.3612,63408.0,63397.0,0.08123678]
[1727271721228,0.0008,63398.0,63397.0,0.08123678]
[1727271722949,0.07967,63398.0,63397.0,0.00236578]
[1727271722989,0.07967,63398.0,63387.0,0.3608]
[1727271722990,0.0008,63398.0,63387.0,0.3608]
[1727271723394,0.0008,63388.0,63387.0,0.3608]
[1727271724004,0.0008,63388.0,63387.0,0.439684]
[1727271725994,0.0008,63388.0,63387.0,0.004]
[1727271726195,0.080683,63388.0,63387.0,0.004]
[1727271726609,0.520366,63388.0,63387.0,0.004]
[1727271726811,0.520366,63388.0,63366.0,0.3608]
[1727271726812,0.078901,63374.0,63366.0,0.3608]
[1727271726994,0.0008,63367.0,63366.0,0.3608]
[1727271727201,0.079709,63367.0,63355.0,0.3608]
[1727271727430,0.0008,63356.0,63355.0,0.439724]
[1727271727918,0.2068,63359.0,63355.0,0.439724]
[1727271728222,1.50244001,63372.0,63355.0,0.0008]
[1727271728223,0.22,63363.0,63355.0,0.0008]
[1727271728405,1.86332,63372.0,63356.0,0.3608]
[1727271728594,1.86332,63372.0,63355.0,0.0008]
[1727271728595,0.3608,63364.0,63362.0,0.078914]
[1727271728795,0.3608,63366.0,63356.0,0.16916931]
[1727271729005,0.3608,63366.0,63355.0,0.079723]
[1727271729204,0.3608,63366.0,63365.0,0.0004]
[1727271729398,0.001,63367.0,63365.0,0.0004]
[1727271729592,0.001,63367.0,63366.0,0.0004]
[1727271730009,0.00244001,63372.0,63366.0,0.0004]
[1727271730207,0.418903,63372.0,63371.0,0.0004]
[1727271730707,0.3608,63391.0,63371.0,0.5292872]
[1727271731012,0.3608,63391.0,63390.0,0.0004]
[1727271731202,0.3608,63391.0,63371.0,0.1680872]
[1727271731203,0.078895,63379.0,63371.0,0.1680872]
[1727271731411,1.3008,63391.0,63370.0,0.439705]
[1727271731412,0.0014,63372.0,63370.0,0.439705]
[1727271731713,0.0004,63371.0,63370.0,0.439705]
[1727271731960,0.0004,63371.0,63370.0,0.779705]
[1727271732097,0.0004,63371.0,63370.0,1.55805788]
[1727271732509,0.7028,63391.0,63370.0,1.55805788]
[1727271732510,0.3628,63391.0,63377.0,0.078895]
[1727271732712,0.3628,63391.0,63381.0,0.3608]
[1727271732902,0.3628,63391.0,63390.0,0.0004]
[1727271732903,0.3638,63391.0,63390.0,0.0004]
[1727271733501,0.3628,63391.0,63390.0,0.0004]
[1727271733696,0.3648,63391.0,63390.0,0.0004]
[1727271733908,0.83804,63391.0,63390.0,0.0004]
[1727271734212,0.84504,63391.0,63390.0,0.0004]
[1727271734708,0.3698,63391.0,63390.0,0.0004]
[1727271735401,0.3838,63391.0,63390.0,0.0004]
[1727271736003,0.84804,63391.0,63390.0,0.0004]
[1727271736214,0.85304,63391.0,63390.0,0.0004]
[1727271736415,0.3798,63391.0,63390.0,0.0004]
[1727271736613,0.3748,63391.0,63390.0,0.0004]
[1727271736800,0.3878,63391.0,63390.0,0.0004]
[1727271737208,0.3748,63391.0,63390.0,0.0004]
[1727271737404,0.3878,63391.0,63390.0,0.0004]
[1727271738504,0.3738,63391.0,63390.0,0.07928]
[1727271738702,0.027,63391.0,63390.0,0.44008]
[1727271739812,0.027,63391.0,63390.0,0.43968]
[1727271740018,0.02,63391.0,63390.0,0.43968]
[1727271740607,0.014,63391.0,63390.0,0.43968]
[1727271740810,0.078869,63399.0,63394.0,0.078875]
[1727271741116,0.078869,63399.0,63398.0,0.0008]
[1727271741507,0.3608,63402.0,63398.0,0.079669]
[1727271741702,0.3608,63402.0,63401.0,0.079667]
[1727271741908,0.3608,63413.0,63405.0,0.078861]
[1727271742113,0.3608,63413.0,63412.0,0.0008]
[1727271742411,0.078852,63413.0,63412.0,0.0008]
[1727271742613,0.36248,63418.0,63417.0,0.078847]
[1727271742814,0.3608,63418.0,63417.0,0.079647]
[1727271743410,0.3608,63418.0,63417.0,0.0008]
[1727271743608,0.3608,63418.0,63417.0,0.079647]
[1727271743909,0.439645,63418.0,63417.0,0.0008]
[1727271744231,0.439645,63418.0,63395.0,0.3608]
[1727271744232,0.07885,63415.0,63395.0,0.3608]
[1727271744520,1.43384,63418.0,63395.0,0.3608]
[1727271744521,0.078873,63396.0,63395.0,0.078874]
[1727271745022,0.078873,63396.0,63392.0,0.078877]
[1727271745215,0.078873,63396.0,63381.0,0.078891]
[1727271745216,0.34,63396.0,63380.0,0.0008]
[1727271745417,0.43968,63390.0,63380.0,0.0008]
[1727271745619,0.43968,63390.0,63389.0,0.078881]
[1727271745620,0.3608,63390.0,63389.0,0.078881]
[1727271745813,0.43968,63390.0,63381.0,0.17356387]
[1727271746010,0.43968,63390.0,63380.0,0.0008]
[1727271746011,0.078885,63387.0,63385.0,0.078886]
[1727271746213,0.3608,63390.0,63386.0,0.078885]
[1727271746416,0.43968,63390.0,63386.0,0.078885]
[1727271746658,0.43968,63390.0,63389.0,0.0008]
[1727271746921,0.07888,63390.0,63389.0,0.0008]
[1727271747110,0.078877,63394.0,63393.0,0.078876]
[1727271747511,0.078877,63394.0,63393.0,0.079676]
[1727271749214,0.078877,63394.0,63393.0,0.0008]
[1727271749413,0.086877,63394.0,63393.0,0.0008]
[1727271750320,0.11645173,63394.0,63393.0,0.00016518]
[1727271750625,0.11805173,63394.0,63393.0,0.00016518]